fUST/lending_fUST_20240501
["ID","MTS","AMOUNT","RATE_DAILY","PERIOD"]
[325129330,1714533016574,-221.86338869,0.00049862,7]
[325129331,1714533016595,-240.026279,0.00049863,2]
[325129332,1714533016616,-240.026279,0.00054448,2]
[325129333,1714533016636,-240.026279,0.00059034,2]
[325129334,1714533016656,-240.026279,0.00063619,2]
[325129335,1714533016675,-34.79802095,0.00067811,2]
[325129336,1714533016695,-153.0,0.00067811,2]
[325129337,1714533016714,-153.0,0.00067811,2]
[325129338,1714533016734,-153.0,0.00067811,2]
[325129339,1714533016753,-153.0,0.00067811,2]
[325129340,1714533016772,-153.0,0.00067811,2]
[325129341,1714533016792,-153.0,0.00067811,2]
[325129342,1714533016812,-153.0,0.00067811,2]
[325129343,1714533016832,-153.0,0.00067811,2]
[325129344,1714533016851,-153.0,0.00067811,2]
[325129345,1714533016870,-153.0,0.00067811,2]
[325129346,1714533016889,-153.0,0.00067811,2]
[325129347,1714533016909,-153.0,0.00067811,2]
[325129348,1714533016929,-153.0,0.00067811,2]
[325129349,1714533016949,-153.0,0.00067811,2]
[325129350,1714533016969,-343.7849533,0.00067811,60]
[325129351,1714533016989,-153.0,0.00067811,2]
[325129352,1714533017010,-153.0,0.00067811,2]
[325129353,1714533017032,-153.862961,0.00067811,2]
[325129354,1714533017053,-303.8919725,0.00067811,2]
[325129355,1714533017074,-153.0,0.00067811,60]
[325129356,1714533017096,-240.026279,0.00068205,2]
[325129357,1714533017116,-240.026279,0.0007279,120]
[325129358,1714533017136,-379.37482483,0.00077172,2]
[325129359,1714533017157,-240.026279,0.00077376,120]
[325129360,1714533017177,-240.026279,0.00081961,120]
[325129361,1714533017195,-160.570029,0.00083612,2]
[325129362,1714533017214,-240.026279,0.00086546,120]
[325129363,1714533017234,-240.026279,0.00091132,120]
[325129364,1714533017253,-150.65349696,0.0009521,2]
[325129365,1714533017273,-240.026279,0.00095717,120]
[325129366,1714533017293,-301.30699391,0.0009681,4]
[325129367,1714533017314,-240.026279,0.00100303,120]
[325129368,1714533017335,-240.026279,0.00104888,120]
[325129369,1714533017354,-240.026279,0.00109474,120]
[325129370,1714533017374,-240.026279,0.00114059,120]
[325129371,1714533017398,-240.026279,0.00118644,120]
[325129372,1714533017418,-153.0,0.00121269,120]
[325129373,1714533017437,-153.0,0.00121269,120]
[325129374,1714533017457,-153.0,0.00121269,120]
[325129375,1714533017479,-153.0,0.00121269,120]
[325129376,1714533017498,-240.026279,0.0012323,120]
[325129377,1714533017518,-240.026279,0.00127815,120]
[325129378,1714533017537,-240.026279,0.00132401,120]
[325129379,1714533022326,178.06762619,0.00054348,2]
[325129503,1714533035516,-421.07317693,0.00134189,120]
[325129504,1714533035528,-78.92682307,0.00134189,120]
[325129505,1714533035537,-500.0,0.00134189,120]
[325129506,1714533035546,-500.0,0.00134189,120]
[325129507,1714533035555,-500.0,0.00134189,120]
[325129508,1714533035564,-8.4549157,0.00134189,120]
[325129509,1714533035575,-491.5450843,0.00134189,120]
[325129510,1714533035585,-240.026279,0.00136986,120]
[325129511,1714533035594,-500.0,0.00145148,120]
[325129512,1714533035602,-500.0,0.00145148,120]
[325129513,1714533035612,-500.0,0.00145148,120]
[325129514,1714533035620,-94.2610087,0.00145148,120]
[325129598,1714533039535,-467.22005651,0.00145148,120]
[325129601,1714533039545,-1200.0,0.0015,120]
[325129603,1714533039554,-282.54,0.00156107,120]
[325129604,1714533039563,-500.0,0.00156107,120]
[325129606,1714533039572,-499.78,0.00156107,120]
[325129610,1714533039581,-60.7336935,0.00156805,120]
[325129612,1714533039593,-93.91253765,0.00156805,120]
[325129614,1714533039602,-304.17306408,0.00159888,14]
[325129617,1714533039611,-500.0,0.00159987,120]
[325129620,1714533039620,-500.0,0.00159988,120]
[325129622,1714533039629,-500.0,0.00159988,120]
[325129625,1714533039638,-1000.0,0.00159988,120]
[325129628,1714533039647,-1463.15,0.00159988,120]
[325129631,1714533039656,-501.04966596,0.00159988,120]
[325129634,1714533039665,-500.67166599,0.00159988,120]
[325129636,1714533039674,-1694.6,0.00159988,120]
[325129638,1714533039683,-500.0,0.00159988,120]
[325129639,1714533039692,-500.0,0.00159988,120]
[325129641,1714533039701,-508.98,0.00159988,120]
[325129643,1714533039710,-500.0,0.00159988,120]
[325129645,1714533039719,-151.48899141,0.00159988,120]
[325129647,1714533039728,-501.12473235,0.00159988,120]
[325129649,1714533039737,-500.0,0.00159988,120]
[325129651,1714533039746,-500.0,0.00159988,120]
[325129653,1714533039755,-601.63474406,0.00159988,120]
[325129656,1714533039765,-181.59294264,0.00159988,120]
[325129657,1714533039774,-500.0,0.00159988,120]
[325129659,1714533039784,-500.0,0.00159988,120]
[325129661,1714533039793,-500.0,0.00159988,120]
[325129663,1714533039803,-663.45,0.00159988,120]
[325129665,1714533039813,-500.0,0.00159988,120]
[325129667,1714533039822,-507.06650763,0.00159988,120]
[325129669,1714533039832,-506.17716805,0.00159988,120]
[325129671,1714533039842,-500.0,0.00159988,120]
[325129673,1714533039851,-500.0,0.00159988,120]
[325129675,1714533039861,-400.66065017,0.00159988,120]
[325129678,1714533039872,-99.33934983,0.00159988,120]
[325129680,1714533039881,-502.46683008,0.00159988,120]
[325129690,1714533039967,-500.0,0.00159988,120]
[325129692,1714533039980,-500.0,0.00159988,120]
[325129695,1714533039990,-692.38,0.00159988,120]
[325129696,1714533040000,-500.0,0.00159988,120]
[325129699,1714533040009,-500.0,0.00159988,120]
[325129701,1714533040018,-500.0,0.00159988,120]
[325129702,1714533040028,-500.0,0.00159988,120]
[325129705,1714533040037,-105.48553291,0.00159988,120]
[325129707,1714533040049,-251.82,0.00159988,120]
[325129709,1714533040061,-142.69446709,0.00159988,120]
[325129711,1714533040070,-500.0,0.00159988,120]
[325129713,1714533040079,-82.30553298,0.00159988,120]
[325129827,1714533041129,-417.69446702,0.00159988,120]
[325129829,1714533041139,-500.0,0.00159988,60]
[325129831,1714533041148,-500.0,0.00159988,120]
[325129833,1714533041157,-500.0,0.00159988,120]
[325129835,1714533041166,-500.0,0.00159988,120]
[325129837,1714533041175,-566.728777,0.00159988,120]
[325129839,1714533041184,-500.0,0.00159988,120]
[325129841,1714533041193,-508.7051272,0.00159988,120]
[325129843,1714533041203,-501.70213015,0.00159988,120]
[325129845,1714533041212,-537.38961256,0.00159988,120]
[325129847,1714533041221,-1457.29,0.00159988,120]
[325129849,1714533041230,-500.0,0.00159988,21]
[325129851,1714533041239,-500.0,0.00159988,120]
[325129853,1714533041250,-500.0,0.00159988,120]
[325129855,1714533041259,-500.0,0.00159989,120]
[325129857,1714533041268,-500.0,0.00159989,120]
[325129859,1714533041277,-500.0,0.00167066,120]
[325129861,1714533041287,-500.0,0.00170946,120]
[325129863,1714533041296,-550.31932125,0.00170947,120]
[325129865,1714533041306,-500.0,0.00170947,120]
[325129867,1714533041315,-1000.0,0.00170947,120]
[325129869,1714533041329,-138.36587251,0.00170947,120]
[325129871,1714533041340,-1324.78412749,0.00170947,120]
[325129873,1714533041350,-1694.6,0.00170947,120]
[325129875,1714533041359,-156.29927016,0.00170947,120]
[325129877,1714533041368,-500.0,0.00170947,120]
[325129879,1714533041377,-500.0,0.00170947,120]
[325129881,1714533041391,-494.81953014,0.00170947,120]
[325130005,1714533044334,-5.18046986,0.00170947,120]
[325130008,1714533044344,-500.0,0.00170947,120]
[325130011,1714533044353,-500.0,0.00170947,120]
[325130014,1714533044362,-583.81953014,0.00170947,120]
[325130292,1714533124509,169.745349,0.001,2]
[325130293,1714533129971,151.0,0.0005,120]
[325130294,1714533155994,252.73056689,0.00041,2]
[325130341,1714533369250,250.0,0.00037944,2]
[325130342,1714533376255,180.81921797,0.00041,4]
[325130343,1714533433125,24316.45021514,0.00037944,2]
[325130344,1714533433151,583.54978486,0.00037944,2]
[325130346,1714533443043,167.56295914,0.00042319,30]
[325130347,1714533457461,175.575719,0.00049863,2]
[325130348,1714533494139,1001.14167171,0.00056265,30]
[325130349,1714533525259,154.65974855,0.00035259,4]
[325130350,1714533532371,918.21815764,0.00036732,4]
[325130351,1714533533357,399.26,0.00056265,120]
[325130352,1714533565286,154.65974855,0.00036732,4]
[325130356,1714533587057,771.85203481,0.00035259,4]
[325130357,1714533606830,150.0,0.00033058,3]
[325130360,1714533733122,151.0,0.0005,120]
[325130361,1714533810088,1806.38546437,0.00020913,2]
[325130362,1714533896944,500.0,0.00056275,7]
[325130363,1714533912687,200.12196174,0.00020913,2]
[325130364,1714533917963,282.08586481,0.00020913,2]
[325130365,1714533924075,1001.50378135,0.00020913,2]
[325130366,1714533930617,200.18449975,0.00020913,2]
[325130367,1714533941165,-1940.71514049,0.00059679,2]
[325130368,1714533943107,-529.95096821,0.00059679,2]
[325130369,1714533944795,257.97135243,0.00034,4]
[325130370,1714533946824,10222.0993743,0.0003711,2]
[325130371,1714533948824,1481.947958,0.00039,4]
[325130373,1714533980177,-1000.0,0.00056275,2]
[325130374,1714533980198,-4684.9,0.00059679,2]
[325130375,1714534018143,1000.0,0.0005,120]
[325130376,1714534031100,-500.0,0.00056275,2]
[325130377,1714534031120,-2133.45173935,0.00059679,2]
[325130378,1714534035170,-15564.39525805,0.00059679,2]
[325130379,1714534035191,-342.09370272,0.0006189,14]
[325130380,1714534035211,-520.56051176,0.0006199,120]
[325130381,1714534039098,-207.53785414,0.0006199,120]
[325130387,1714534146093,-1503.0,0.00056165,2]
[325130388,1714534146114,-159.97920139,0.00057844,120]
[325130389,1714534146135,-300.0,0.00061,120]
[325130390,1714534146155,-500.0,0.000618,120]
[325130391,1714534146175,-1771.9016341,0.0006199,120]
[325130392,1714534146196,-3615.4462019,0.00062308,7]
[325130393,1714534146217,-175.575719,0.00062309,2]
[325130394,1714534150175,-175.575719,0.00074755,120]
[325130395,1714534150198,-2500.0,0.0007849,120]
[325130396,1714534150218,-2500.0,0.0007855,120]
[325130397,1714534150239,-2500.0,0.000819,120]
[325130398,1714534150260,-150.0,0.00084599,120]
[325130399,1714534150280,-175.575719,0.00087202,120]
[325130400,1714534150301,-250.0,0.00088999,120]
[325130401,1714534150321,-2849.013,0.00089,90]
[325130402,1714534150340,-154.57294457,0.00089533,120]
[325130403,1714534150360,-700.0,0.0009,120]
[325130404,1714534150378,-639.02,0.00098,90]
[325130405,1714534150400,-175.575719,0.00099648,120]
[325130406,1714534150419,-500.0,0.00099899,120]
[325130407,1714534150441,-2500.0,0.001059,120]
[325130408,1714534150463,-500.0,0.00109589,120]
[325130409,1714534150484,-500.0,0.00109589,120]
[325130410,1714534150507,-500.0,0.00109589,120]
[325130411,1714534150528,-304.32,0.00109589,120]
[325130412,1714534150550,-511.27832617,0.00109589,120]
[325130413,1714534150573,-500.0,0.00109589,120]
[325130414,1714534150594,-500.0,0.00109589,120]
[325130415,1714534150615,-500.0,0.00109589,120]
[325130416,1714534150637,-500.0,0.00109589,120]
[325130417,1714534150658,-500.0,0.00109589,120]
[325130418,1714534150682,-538.84380992,0.00109589,120]
[325130419,1714534150707,-175.575719,0.00112094,120]
[325130420,1714534150728,-152.78647308,0.00116339,120]
[325130421,1714534150751,-333.28,0.00120547,120]
[325130422,1714534150772,-500.0,0.00120547,120]
[325130423,1714534150795,-500.0,0.00120547,120]
[325130424,1714534150818,-500.0,0.00120547,120]
[325130425,1714534150839,-459.01301696,0.00120547,120]
[325130426,1714534150860,-500.0,0.00120547,120]
[325130427,1714534150882,-175.575719,0.0012454,120]
[325130428,1714534150901,-507.70440589,0.0013,120]
[325130429,1714534150921,-160.0,0.00130056,30]
[325130430,1714534150944,-160.36857771,0.00130604,30]
[325130431,1714534150966,-500.0,0.00131506,120]
[325130432,1714534150986,-571.84,0.00131506,120]
[325130433,1714534151007,-228.97504434,0.00131506,120]
[325130434,1714534151027,-500.0,0.00131506,120]
[325130435,1714534151048,-2500.0,0.001359,120]
[325130436,1714534151068,-40028.06477209,0.00136,120]
[325130437,1714534151089,-150.0,0.00136139,120]
[325130438,1714534151109,-175.575719,0.00136986,120]
[325130439,1714534175178,500.0,0.00109589,21]
[325130440,1714534175438,500.0,0.00120547,21]
[325130441,1714534175761,500.0,0.00131506,21]
[325130442,1714534175829,2083.29,0.00109589,120]
[325130443,1714534176172,2083.29,0.00120547,120]
[325130444,1714534176428,755.88061532,0.00131506,120]
[325130449,1714534206580,150.0,0.00033063,3]
[325130494,1714534232099,-165.91,0.00087945,120]
[325130496,1714534232108,-250.0,0.00105899,120]
[325130498,1714534232118,-500.0,0.00109589,120]
[325130500,1714534232127,-194.22,0.00109589,120]
[325130502,1714534232137,-258.6699999,0.00109589,120]
[325130605,1714534234911,-241.3300001,0.00109589,120]
[325130606,1714534234919,-284.8749489,0.00109589,120]
[325130646,1714534238615,-354.2950511,0.00109589,120]
[325130647,1714534238626,-500.0,0.00109589,120]
[325130648,1714534238636,-500.0,0.00109589,120]
[325130649,1714534238645,-500.0,0.00120547,120]
[325130650,1714534238655,-500.0,0.00120547,120]
[325130651,1714534238666,-639.17,0.00120547,120]
[325130652,1714534238676,-500.0,0.00120547,120]
[325130653,1714534238688,-481.98720132,0.00120547,120]
[325130654,1714534238698,-500.0,0.0013,120]
[325130655,1714534238707,-1169.56381777,0.00131506,120]
[325130656,1714534238719,-157.84556691,0.00131506,120]
[325130657,1714534238729,-548.16760281,0.00131506,120]
[325130658,1714534238741,-500.0,0.00131506,120]
[325130659,1714534238750,-639.17,0.00131506,120]
[325130660,1714534238760,-250.0,0.00135999,120]
[325130661,1714534238769,-501.28024735,0.00135999,120]
[325130662,1714534238780,-2500.0,0.001407,120]
[325130663,1714534238789,-1200.0,0.00142,120]
[325130664,1714534238799,-500.0,0.00142465,120]
[325130665,1714534238809,-500.0,0.00142465,21]
[325130666,1714534238819,-2083.29,0.00142465,120]
[325130667,1714534238828,-500.0,0.00142465,120]
[325130668,1714534238838,-639.17,0.00142465,120]
[325130669,1714534238847,-10000.0,0.00143582,120]
[325130670,1714534238856,-1350.987,0.00145,110]
[325130671,1714534238866,-2500.0,0.001494,120]
[325130672,1714534238875,-935.2529917,0.0015,110]
[325130673,1714534238884,-10000.0,0.00151054,120]
[325130674,1714534238893,-500.0,0.00153424,120]
[325130675,1714534238902,-500.0,0.00153424,21]
[325130676,1714534238912,-2083.29,0.00153424,120]
[325130677,1714534238923,-500.0,0.00153424,120]
[325130678,1714534238933,-639.17,0.00153424,120]
[325130679,1714534238942,-760.98,0.00156,90]
[325130680,1714534239040,-546.3306419,0.00157531,30]
[325130681,1714534239052,-2500.0,0.001579,120]
[325130682,1714534239062,-10000.0,0.00158604,120]
[325130683,1714534239071,-2500.0,0.001595,120]
[325130684,1714534239081,-7170.44,0.00159977,3]
[325130685,1714534239091,-500.0,0.00159985,120]
[325130686,1714534239100,-291.17532404,0.00159985,120]
[325130687,1714534239111,-208.82467596,0.00159985,120]
[325130688,1714534239121,-500.0,0.00159985,120]
[325130689,1714534239131,-297.95495402,0.00159985,120]
[325130701,1714534240521,-500.0,0.00159976,120]
[325130702,1714534240531,-202.04504598,0.00159985,120]
[325130703,1714534240541,-511.23,0.00159985,120]
[325130704,1714534240550,-500.0,0.00159985,120]
[325130705,1714534240561,-501.60574544,0.00159985,120]
[325130706,1714534240570,-500.0,0.00159985,120]
[325130707,1714534240579,-506.14660351,0.00159985,120]
[325130708,1714534240589,-619.12,0.00159985,120]
[325130709,1714534240598,-500.0,0.00159985,2]
[325130710,1714534240607,-1553.38,0.00159985,120]
[325130711,1714534240616,-500.0,0.00159985,120]
[325130712,1714534240626,-500.0,0.00159985,120]
[325130713,1714534240635,-500.0,0.00159985,120]
[325130714,1714534240644,-500.0,0.00159985,120]
[325130715,1714534240653,-500.0,0.00159985,120]
[325130716,1714534240663,-501.16934418,0.00159985,120]
[325130717,1714534240672,-500.0,0.00159985,120]
[325130718,1714534240681,-508.16740448,0.00159985,120]
[325130719,1714534240690,-501.46445133,0.00159985,120]
[325130720,1714534240699,-500.0,0.00159985,120]
[325130721,1714534240708,-500.0,0.00159985,120]
[325130722,1714534240718,-28.49228654,0.00159985,120]
[325130744,1714534245408,203.8574549,0.00067399,60]
[325130757,1714534246103,-502.64532095,0.00109589,120]
[325130758,1714534246112,-200.11832451,0.00149399,14]
[325130760,1714534246121,-675.43875431,0.00149399,120]
[325130762,1714534246130,-410.19888165,0.00149399,14]
[325130763,1714534246139,-500.0,0.00159976,120]
[325130764,1714534246148,-500.0,0.00159976,120]
[325130765,1714534246157,-295.38051911,0.00159984,2]
[325130766,1714534246166,-154.85372289,0.00159984,30]
[325130767,1714534246175,-2645.8770363,0.00159984,7]
[325130768,1714534246184,-191.78599446,0.00159985,120]
[325130769,1714534246193,-896.01,0.00159985,120]
[325130770,1714534246202,-500.0,0.00159985,120]
[325130771,1714534246211,-503.19037469,0.00159985,120]
[325130772,1714534246220,-500.0,0.00159985,120]
[325130773,1714534246229,-1002.58,0.00159985,120]
[325130774,1714534246239,-500.0,0.00159985,120]
[325130775,1714534246248,-161.90330068,0.00159985,120]
[325130776,1714534246258,-250.38130141,0.00159985,120]
[325130777,1714534246282,372.24952953,0.000669,120]
[325130778,1714534246373,154.70605849,0.0005,30]
[325130779,1714534248070,203.8574549,0.00067399,60]
[325130780,1714534250915,203.8574549,0.00067399,60]
[325130781,1714534250944,1576.98678225,0.00020913,2]
[325130782,1714534252383,252.7509919,0.00041,2]
[325130783,1714534253036,203.8574549,0.00067399,60]
[325130784,1714534260204,6183.56172681,0.0005,120]
[325130785,1714534260230,250.00182177,0.0005,120]
[325130786,1714534260256,2128.81925848,0.0005,120]
[325130787,1714534271303,1492.097253,0.00024382,2]
[325130788,1714534283887,154.65974855,0.000459,4]
[325130789,1714534297613,362.38148801,0.00024382,2]
[325130790,1714534303205,818.69165659,0.00037357,4]
[325130791,1714534319810,363.97218607,0.00049,120]
[325130792,1714534319836,6642.17111934,0.00049,120]
[325130793,1714534333342,151.0,0.0005,120]
[325130794,1714534339702,292.36005308,0.00020913,2]
[325130795,1714534339816,6735.02317328,0.00049,120]
[325130796,1714534349709,151.0,0.00045,120]
[325130797,1714534351755,156.75030287,0.0004896,30]
[325130798,1714534362946,154.65974855,9.999e-05,2]
[325130799,1714534380942,154.65974855,0.00020913,2]
[325130800,1714534398947,172.10359104,0.00020913,2]
[325130801,1714534430844,166.70315422,0.00056149,105]
[325130802,1714534431712,166.70315422,0.00056149,105]
[325130803,1714534432569,166.70315422,0.00056149,105]
[325130808,1714534585053,158.673999,0.00049863,2]
[325130810,1714534630037,-250.0,0.00053925,2]
[325130811,1714534636659,-200.0,0.00056149,2]
[325130812,1714534648170,-151.0,0.00060027,120]
[325130813,1714534648193,-156.75030287,0.00061035,120]
[325130814,1714534648218,-1799.999999,0.000614,120]
[325130815,1714534648242,-16923.1423175,0.00061686,2]
[325130816,1714534670858,5969.10738063,0.0005,4]
[325130817,1714534670885,25000.0,0.0005,4]
[325130818,1714534670910,24800.0,0.0005,4]
[325130819,1714534670937,24750.0,0.0005,4]
[325130820,1714534670961,25000.0,0.0005,4]
[325130821,1714534670985,25000.0,0.0005,4]
[325130822,1714534750570,255.8520623,0.00034872,2]
[325130823,1714534751341,551.42384778,9.999e-05,2]
[325130824,1714534765342,232.95694569,0.00020913,2]
[325130825,1714534807896,150.0,0.00033262,3]
[325130826,1714534831191,160.570029,0.00035481,2]
[325130827,1714534832235,151.0,0.00045,120]
[325130830,1714535031241,166.70315422,0.00054944,105]
[325130831,1714535032319,166.70315422,0.00054944,105]
[325130832,1714535091390,550.56357256,0.00020913,2]
[325130833,1714535132174,-154.57294457,0.00046912,30]
[325130834,1714535132196,-151.0,0.0004726,120]
[325130835,1714535132216,-151.0,0.00049507,120]
[325130836,1714535132235,-165.556359,0.00049863,2]
[325130837,1714535132255,-439.08653337,0.00049899,14]
[325130838,1714535132274,-151.0,0.0005,120]
[325130839,1714535132294,-98.44366368,0.00051653,2]
[325130840,1714535136100,-274.07954983,0.00051653,2]
[325130841,1714535136126,-151.0,0.00051753,120]
[325130842,1714535136146,-444.45575635,0.00053995,15]
[325130843,1714535136167,-151.0,0.00054,120]
[325130844,1714535136188,-165.556359,0.00056086,2]
[325130845,1714535136208,-151.0,0.00056247,120]
[325130846,1714535136228,-94.29156402,0.0005665,3]
[325130868,1714535235155,-166.0,0.0005663,35]
[325130869,1714535235178,-166.0,0.0005664,35]
[325130870,1714535235198,-197.36908946,0.0005665,3]
[325130871,1714535236085,1012.79550254,0.00020913,2]
[325130872,1714535246916,466.46671286,0.00034,4]
[325130873,1714535247089,-153.75452928,0.00047855,30]
[325130874,1714535247109,-1300.0,0.0005609,120]
[325130875,1714535247134,-1103.38948247,0.0005665,4]
[325130876,1714535247153,-180.62,0.0005665,35]
[325130877,1714535247173,-166.0,0.0005665,35]
[325130878,1714535247191,-4006.1,0.00056659,30]
[325130879,1714535247212,-3091.80955658,0.00056659,30]
[325130880,1714535249148,-838.38988007,0.00056659,30]
[325130881,1714535253239,166.666666,0.00032647,2]
[325130882,1714535253432,166.666666,0.00033537,2]
[325130883,1714535253668,166.666666,0.00034427,2]
[325130884,1714535253895,166.666666,0.00035317,2]
[325130885,1714535254105,166.666666,0.00036207,2]
[325130886,1714535254308,166.666666,0.00037097,2]
[325130887,1714535256252,362.38148801,9.999e-05,2]
[325130888,1714535260896,342.95467686,0.00035,4]
[325130889,1714535276243,362.38148801,0.00020913,2]
[325130890,1714535298233,362.03471265,0.00020913,2]
[325130891,1714535300106,595.87797379,0.00020913,2]
[325130892,1714535300656,354.57598133,0.00020913,2]
[325130893,1714535300702,268.21499986,0.00020913,2]
[325130894,1714535301303,247.85703584,0.00020913,2]
[325130895,1714535304137,257.71193567,0.00035,4]
[325130896,1714535304294,159.24114282,0.00022,2]
[325130897,1714535304505,2597.39837637,0.00020913,2]
[325130898,1714535304618,155.30686759,0.00020913,2]
[325130899,1714535306395,5472.64404625,0.00020913,2]
[325130900,1714535308523,330.8801487,0.00020913,2]
[325130901,1714535310883,208.19297972,0.00020913,2]
[325130902,1714535312583,355.31942054,0.00023,2]
[325130903,1714535314897,155.3878487,0.00020913,2]
[325130904,1714535324297,159.24114282,0.00022,2]
[325130905,1714535344307,207.87250942,0.00022,2]
[325130906,1714535344828,2807.88924572,0.00020913,2]
[325130907,1714535347804,3122.85349217,0.0002,2]
[325130908,1714535347829,2032.85480878,0.0002,2]
[325130909,1714535348397,597.98045973,0.00035,2]
[325130910,1714535354546,154.65974855,9.999e-05,2]
[325130911,1714535358796,2807.88924572,0.00020913,2]
[325130912,1714535363145,-151.0,0.0005,120]
[325130913,1714535363169,-5000.0,0.00055,120]
[325130914,1714535363188,-700.0,0.000558,120]
[325130915,1714535363208,-2093.62609695,0.00056158,10]
[325130916,1714535363228,-329.31490005,0.0005655,14]
[325130917,1714535363248,-150.5,0.0005663,35]
[325130918,1714535363268,-150.5,0.0005664,35]
[325130919,1714535363288,-252.8,0.0005665,30]
[325130920,1714535363308,-10141.3,0.0005665,3]
[325130921,1714535363328,-150.5,0.0005665,35]
[325130922,1714535363348,-210.67,0.0005665,30]
[325130923,1714535363368,-8451.08,0.0005665,3]
[325130924,1714535363388,-175.55,0.0005665,30]
[325130925,1714535363408,-7042.57,0.0005665,3]
[325130926,1714535363428,-75.90056335,0.00056659,30]
[325130927,1714535363448,-4006.1,0.00056659,30]
[325130928,1714535363468,-4006.1,0.00056659,30]
[325130929,1714535363488,-4006.1,0.00056659,30]
[325130930,1714535363508,-4006.1,0.00056659,30]
[325130931,1714535363528,-4006.1,0.00056659,30]
[325130932,1714535363547,-4006.1,0.00056659,30]
[325130933,1714535363568,-4006.1,0.00056659,30]
[325130934,1714535363587,-4006.1,0.00056659,30]
[325130935,1714535363610,-501.15336898,0.00056659,31]
[325130936,1714535363630,-150.70305953,0.00056659,60]
[325130937,1714535363649,-160.0,0.00056659,90]
[325130938,1714535363669,-197.80807142,0.00056659,90]
[325130939,1714535363691,-5170.40830178,0.0005666,61]
[325130940,1714535363710,-71433.01254327,0.0005666,120]
[325130941,1714535370344,427.60511359,0.00035,2]
[325130942,1714535370542,180.66619697,0.00020913,2]
[325130943,1714535382797,160.00547784,0.00020913,2]
[325130944,1714535409398,232.3,0.00033267,3]
[325130945,1714535418688,151.0,0.00045,120]
[325130946,1714535419996,-151.0,0.00046082,120]
[325130947,1714535420022,-151.0,0.00047151,120]
[325130948,1714535420049,-153.0,0.00054965,60]
[325130949,1714535420080,-203.8574549,0.00054965,60]
[325130950,1714535420108,-153.0,0.00054965,60]
[325130951,1714535420137,-153.0,0.00054965,60]
[325130952,1714535420163,-203.8574549,0.00054965,60]
[325130953,1714535420190,-153.0,0.00054965,60]
[325130954,1714535420217,-153.0,0.00054965,60]
[325130955,1714535420243,-2000.000001,0.000558,120]
[325130956,1714535420270,-877.8,0.0005665,30]
[325130957,1714535420299,-5868.81,0.0005665,3]
[325130958,1714535420324,-4890.67,0.0005665,3]
[325130959,1714535420353,-4075.56,0.0005665,3]
[325130960,1714535420380,-1000.0,0.0005665,30]
[325130961,1714535420412,-10821.76051736,0.0005666,61]
[325130962,1714535420441,-2750566.98745673,0.0005666,120]
[325130963,1714535420468,-5638.8454027,0.00057559,2]
[325130964,1714535420494,-150.0,0.00057659,60]
[325130965,1714535420521,-153.52140436,0.00059887,120]
[325130966,1714535420547,-165.556359,0.00062309,2]
[325130967,1714535420575,-203.6061089,0.00066557,60]
[325130968,1714535420601,-161.2368992,0.00066561,2]
[325130969,1714535420628,-1000.0,0.00066886,120]
[325130970,1714535420655,-153.52140436,0.00066901,120]
[325130971,1714535420682,-158.673999,0.00067288,2]
[325130972,1714535420708,-250.0,0.00068493,120]